Cogmind - Beta 10.1 @@@ ROGUE MODE // 2020.09.29 @ 13:12:42 Player: derk Result: Destroyed by G-67 Veteran with Electrolaser Performance ------------- Evolutions (5) 2500 Regions Visited (23) 4600 Robots Destroyed (282) 1410 Value Destroyed (11522) 11522 Prototype IDs (30) 600 Alien Tech Used (0) 0 Bonus (3659) 3659 TOTAL SCORE: 24291 Bonus ------- High Alert Combat Kills 370 Follower Combat Kills 1168 Entered Garrisons 600 Used RIF Installer 1500 Aligned with FarCom 300 Friendly Fire -279 Cogmind --------- Core Integrity 0/1000 Matter 550/550 Energy 170/170 System Corruption 25% Temperature Cool (9) Movement Walking (330) Ox7 Location -4/Proximity Caves Parts ------- > --- POWER (1) -------- Micro Fission Core > --- PROPULSION (3) --- Myomer Leg > --- UTILITY (11) ----- High-capacity Storage Unit High-capacity Storage Unit High-capacity Storage Unit High-capacity Storage Unit High-capacity Storage Unit Matter Compressor Salvage Targeting Computer Improved Medium Armor Plating Relay Coupler [NC] (8) > --- WEAPON (2) ------- Lance > --- INVENTORY (44) --- Weapon Cycler Damper Plating Damper Plating Hacking Suite System Shield Relay Coupler [Sentry] (18) PSU Rigger Improved Remote Datajack Improved Remote Datajack Molecular Deconstructor Dirty Bomb Trap Dirty Bomb Trap Dirty Bomb Trap Dirty Bomb Trap Fire Trap Fire Trap Fire Trap Fire Trap Peak State ------------ > --- POWER ------------ Antimatter Reactor > --- PROPULSION ------- Improved Medium Treads Heavy Treads > --- UTILITY ---------- Improved Cooling System High-capacity Storage Unit High-capacity Storage Unit High-capacity Storage Unit High-capacity Storage Unit Compact Battery Armor Integrity Analyzer Advanced Thermal Shield Improved Remote Force Field Relay Coupler [NC] Sensor Drone Bay > --- WEAPON ----------- Matter Neutralizer Powered Hammer > --- INVENTORY -------- Reinforced Deuterium Engine Micro Fission Core Micro Fission Core Improved Treads Heavy Treads Heavy Treads Coolant Injector High-capacity Storage Unit Matter Compressor Weapon Cycler Damper Plating Damper Plating Force Field System Shield Relay Coupler [Sentry] Relay Coupler [Hunter] System Backup Module PSU Rigger Heavy Laser Plasma Rifle Gauss Rifle Smartbomb Launcher Smartbomb Launcher Improved Remote Datajack Improved Remote Datajack Lance [Rating: 89] Favorites ----------- Power Antimatter Reactor Engine Improved Ion Engine Power Core Neutrino Core Reactor Antimatter Reactor Propulsion Heavy Treads Treads Heavy Treads Leg Carbon-fiber Leg Wheel Compact Wheel Hover Unit Combat Airjet Utility High-capacity Storage Unit Device Improved Cooling System Storage High-capacity Storage Unit Processor Improved Targeting Computer Hackware Relay Coupler [NC] Protection Improved Medium Armor Plating Weapon Remote Datajack Energy Gun Heavy EM Shotgun Energy Cannon Heavy Ion Cannon Ballistic Gun Gauss Rifle Ballistic Cannon Bore Cannon Launcher Mini Grenade Launcher Special Weapon Remote Datajack Impact Weapon Powered Hammer Slashing Weapon Axe Piercing Weapon Lance Build | -11 -10 -10 -9 -9 -9 -8 -8 -8 -8 -7 -7 -7 -6 -6 -6 -6 -5 -5 -5 -5 -5 -5 -4 ------- Run | Scr Mat Min Mat Min Exi Min Mat Gar Mat Fac Was Fac Fac Gar Fac Gar Fac Was Fac Upp Upp War Pro Slots Evolved 10 | . . . 2 . . . 2 . . 2 . . 2 . . . 2 . . . . . . Power . | . . . . . . . . . . . . . . . . . . . . . . . . Propulsion 1 | . . . . . . . . . . . . . . . . . 1 . . . . . . Utility 9 | . . . 2 . . . 2 . . 2 . . 2 . . . 1 . . . . . . Weapon . | . . . . . . . . . . . . . . . . . . . . . . . . Parts Attached 374 | 7 10 6 14 12 3 15 38 3 8 39 12 3 3 13 27 22 39 8 29 18 10 1 34 Power 26 | 1 1 1 1 3 . 2 1 . 1 3 1 . . . 1 1 2 . . 3 1 . 3 Engine 13 | 1 1 1 . 2 . 2 . . 1 2 . . . . . 1 1 . . . . . 1 Core 9 | . . . 1 1 . . 1 . . 1 . . . . . . 1 . . 2 1 . 1 Reactor 4 | . . . . . . . . . . . 1 . . . 1 . . . . 1 . . 1 Propulsion 50 | 3 2 1 2 . 2 4 7 1 3 5 1 . . 1 4 1 4 1 1 2 1 . 4 Treads 31 | 2 2 . . . . 1 3 1 1 4 1 . . 1 4 1 2 1 1 2 1 . 3 Leg 3 | . . . . . . . 1 . . . . . . . . . 1 . . . . . 1 Wheel 14 | 1 . 1 . . 2 3 3 . 2 1 . . . . . . 1 . . . . . . Hover 2 | . . . 2 . . . . . . . . . . . . . . . . . . . . Flight . | . . . . . . . . . . . . . . . . . . . . . . . . Utility 152 | 1 4 2 5 3 1 7 18 1 1 19 5 1 3 11 13 11 12 4 8 9 3 1 9 Device 64 | . 1 1 2 3 . 6 9 1 1 6 4 . . 3 2 3 5 1 3 6 2 1 4 Storage 24 | 1 3 1 . . 1 1 5 . . 3 . . . . 2 . . 1 1 2 . . 3 Processor 6 | . . . . . . . . . . 2 . . 1 . 1 . . 1 . 1 . . . Hackware 25 | . . . 2 . . . . . . 2 1 . . 5 3 4 4 . 3 . . . 1 Protection 33 | . . . 1 . . . 4 . . 6 . 1 2 3 5 4 3 1 1 . 1 . 1 Artifact . | . . . . . . . . . . . . . . . . . . . . . . . . Weapon 146 | 2 3 2 6 6 . 2 12 1 3 12 5 2 . 1 9 9 21 3 20 4 5 . 18 Energy Gun 15 | 1 . . 1 1 . . 2 . 1 1 . . . . . . 1 1 2 . . . 4 Energy Cannon 37 | . . 1 . . . . 3 . 2 1 1 1 . . 5 4 8 1 6 2 1 . 1 Ballistic Gun 34 | 1 2 . 3 3 . 1 2 . . 4 2 . . 1 2 1 3 . 3 1 2 . 3 Ballistic Cannon 3 | . . . . . . . . . . . . . . . . . . . . . . . 3 Launcher 25 | . 1 1 2 2 . 1 3 1 . 1 1 . . . . 1 1 . 6 1 . . 3 Special Weapon 20 | . . . . . . . . . . 1 . 1 . . 2 3 7 1 2 . 1 . 2 Impact Weapon 8 | . . . . . . . 1 . . 4 1 . . . . . 1 . 1 . . . . Slashing Weapon 1 | . . . . . . . 1 . . . . . . . . . . . . . . . . Piercing Weapon 3 | . . . . . . . . . . . . . . . . . . . . . 1 . 2 Special Melee Weapon . | . . . . . . . . . . . . . . . . . . . . . . . . Unidentified Prototypes 4 | . . . 1 . . . 1 . 1 . . . . . . . . . . . 1 . . Parts Lost 90 | . . 2 . 5 . 3 16 1 . 3 . . . 2 5 3 10 . 3 7 3 . 27 Power 13 | . . . . 2 . 2 1 . . 1 . . . . 1 . 1 . . 1 1 . 3 Propulsion 17 | . . 1 . . . 1 5 1 . . . . . . . 1 2 . . 1 . . 5 Utility 29 | . . . . 1 . . 4 . . 1 . . . 1 2 2 4 . 1 3 1 . 9 Weapon 31 | . . 1 . 2 . . 6 . . 1 . . . 1 2 . 3 . 2 2 1 . 10 Highest Loss Streak 12 | . . 1 . 2 . 2 12 1 . 1 . . . 1 3 3 4 . 1 5 3 . 8 Average Slot Usage (%) 89 | . 97 99 94 85 87 87 87 89 88 89 91 92 91 92 92 90 86 83 80 89 87 82 86 Engine 4 | . 14 14 . 10 11 10 4 . 5 6 . . . . . 5 4 5 5 . . . . Core 1 | . . . 10 . . . 2 9 3 . . . . . . . . . . 4 4 5 2 Reactor 1 | . . . . . . . . . . . 6 7 6 6 5 . . . . . . . 1 Treads 8 | . 28 25 . . . . 5 7 3 14 7 7 6 6 6 5 10 10 11 11 11 11 8 Wheel 2 | . . 2 . . 2 19 12 9 15 . . . . . . . . . . . . . . Hover 1 | . . . 21 22 18 . . . . . . . . . . . . . . . . . . Device 10 | . 1 3 . 15 11 10 8 9 9 6 21 16 6 10 7 6 5 5 7 16 17 17 15 Storage 27 | . 23 24 22 22 32 24 27 27 27 26 30 30 26 26 26 26 23 23 23 33 29 29 31 Processor 3 | . . . . . . . . . . 2 . . 4 6 8 9 1 3 5 5 5 5 5 Hackware 6 | . . . 11 . . . . . . 1 7 7 6 13 14 12 17 12 6 5 5 5 5 Protection 5 | . . . 6 . . . 8 9 9 12 . 5 20 7 7 8 6 5 4 . 3 5 2 Energy Gun 2 | . 14 . . 5 11 . 2 9 7 3 . . . . . . . 3 1 . . . 1 Energy Cannon 2 | . . 13 . . . . 1 . 6 2 1 6 6 5 5 2 3 1 1 . 1 . . Ballistic Gun 3 | . 13 7 15 5 . 11 8 1 . 3 2 . . . 1 3 2 . 1 1 4 . . Launcher 1 | . . 6 4 4 . 10 3 7 2 . . . . . . 3 . . 1 2 . . . Special Weapon 1 | . . . . . . . . . . . 7 6 6 6 4 2 1 5 2 . . . 1 Naked Turns . | . . . . . . . . . . . . . . . . . . . . . . . . Heaviest Build 206 | 10 43 44 44 46 60 123 134 115 120 149 149 145 152 152 170 199 203 200 205 200 182 166 206 Greatest Support 100 | 40 40 40 44 44 44 32 43 10 40 48 70 70 70 70 70 70 100 100 100 100 100 93 98 Greatest Overweight (x) 60 | 1 1 2 . 1 1 7 11 11 11 5 3 2 2 2 5 2 20 19 2 1 1 1 60 Average Overweight (x) 2 | . . . . . . 3 3 11 5 3 1 1 2 2 2 2 3 4 1 1 1 1 2 Largest Inventory Capacity 44 | 6 16 16 16 16 22 36 36 26 26 34 34 34 34 34 36 36 36 36 36 36 36 36 44 Average Capacity 30 | 5 8 14 16 16 21 28 31 26 26 29 34 34 34 34 35 36 36 36 36 36 36 36 39 Most Carried 36 | 6 13 16 16 16 22 30 30 25 26 34 34 34 34 34 36 33 36 36 36 36 36 36 36 Average Carried 28 | 4 7 12 15 15 19 23 25 21 25 28 33 33 33 33 33 29 32 35 33 32 34 36 31 Final Capacity 44 | 6 16 16 16 16 22 30 26 26 26 34 34 34 34 34 36 36 36 36 36 36 36 36 44 Final Carried 36 | 6 13 15 16 16 22 29 25 24 26 34 34 34 34 34 32 33 34 36 33 35 36 36 23 Class Distribution -------------------- 68% | Hauler-Mutant 17% | Bothacker-Mutant 10% | Mutant Dominant Class ---------------- Mutant | -10/Materials Mutant | -10/Mines Scavenger-Mutant | -9/Materials Mutant | -9/Mines Hauler-Mutant | -9/Exiles Hauler-Mutant | -8/Mines Hauler-Mutant | -8/Materials Hauler-Mutant | -8/Garrison Hauler-Mutant | -8/Materials Hauler-Mutant | -7/Factory Hauler-Mutant | -7/Waste Hauler-Mutant | -7/Factory Hauler-Mutant | -6/Factory Hauler-Mutant | -6/Garrison Hauler-Mutant | -6/Factory Bothacker-Mutant | -6/Garrison Bothacker-Mutant | -5/Factory Hauler-Mutant | -5/Waste Hauler-Mutant | -5/Factory Hauler-Mutant | -5/Upper Caves Hauler-Mutant | -5/Upper Caves Hauler-Mutant | -5/Warlord Hauler-Mutant | -4/Proximity Caves Resources | -11 -10 -10 -9 -9 -9 -8 -8 -8 -8 -7 -7 -7 -6 -6 -6 -6 -5 -5 -5 -5 -5 -5 -4 ----------- Run | Scr Mat Min Mat Min Exi Min Mat Gar Mat Fac Was Fac Fac Gar Fac Gar Fac Was Fac Upp Upp War Pro Matter Collected 8177 | 271 185 201 255 386 20 480 597 115 62 576 639 30 . 303 567 451 688 112 547 515 160 . 1017 Remotely . | . . . . . . . . . . . . . . . . . . . . . . . . Salvage Created 12048 | 79 325 398 251 294 . 759 875 65 62 1611 488 . . 390 471 781 1765 475 1187 751 297 . 724 Parts 551 | 4 23 20 16 28 . 54 33 9 5 71 11 . . 17 27 33 82 9 44 25 12 . 28 Haulers Intercepted 6 | . 1 . 1 . . . 2 . . 2 . . . . . . . . . . . . . Recyclers Shooed 9 | . . . . . . 1 . . . 3 . . . . 2 . 1 . 2 . . . . Parts Field Recycled . | . . . . . . . . . . . . . . . . . . . . . . . . Retrieved Matter . | . . . . . . . . . . . . . . . . . . . . . . . . Parts Self-Destructed 52 | . . . . . . . . . . . . . . . . . . . . 13 7 . 32 Prevented 9 | . . . . . . . . . . . . . . . . . . . . 6 . . 3 Kills | -11 -10 -10 -9 -9 -9 -8 -8 -8 -8 -7 -7 -7 -6 -6 -6 -6 -5 -5 -5 -5 -5 -5 -4 ------- Run | Scr Mat Min Mat Min Exi Min Mat Gar Mat Fac Was Fac Fac Gar Fac Gar Fac Was Fac Upp Upp War Pro Combat Hostiles Destroyed 211 | . 7 12 6 20 . 18 19 5 . 12 2 . . 6 6 15 19 2 23 20 4 . 15 Melee 2 | . . . . . . . 1 . . 1 . . . . . . . . . . . . . Guns 60 | . 4 1 4 8 . 3 9 1 . 6 1 . . 1 3 . 5 2 3 3 2 . 4 Cannons 40 | . . 5 . . . . . . . 2 1 . . 5 2 6 7 . 2 3 2 . 5 AOE 93 | . 3 6 2 12 . 15 9 4 . 3 . . . . . 7 4 . 11 11 . . 6 Classes Destroyed 21 | 1 5 3 1 2 . 1 1 . . 1 1 . . 2 . 1 . . . . 1 . 1 Worker 22 | . . . . 1 . 3 4 . 1 5 . . . . 2 . 6 . . . . . . Builder 6 | . . 1 . . . 1 . . . 2 . . . . . . 2 . . . . . . Tunneler 4 | . . 2 . . . 2 . . . . . . . . . . . . . . . . . Hauler 6 | . 1 . 1 . . . 2 . . 2 . . . . . . . . . . . . . Recycler 22 | 1 1 . . . . 5 2 . . 10 . . . . . . 3 . . . . . . Minesweeper 1 | . . . . . . . . . . . . . . . . . . . . . . . 1 Mechanic 1 | . . . . . . . . . . . . . . . 1 . . . . . . . . Operator 3 | . 1 . 1 . . . . . . . . . . . . . 1 . . . . . . Watcher 5 | . 1 . 1 . . . . . 1 1 . . . . 1 . . . . . . . . Swarmer 56 | . 3 . . 14 . 11 4 4 . . . . . . . 5 1 . 5 4 . . 5 Grunt 84 | . 4 7 5 5 . 5 12 1 . 2 . . . 3 3 5 6 . 7 14 . . 5 Brawler 3 | . . . . . . 1 . . . . . . . . . . . . 1 . . . 1 Duelist 5 | . . . . 1 . 1 . . . 1 . . . . . . . . 1 1 . . . Sentry 13 | . . . 1 . . . 2 . . 1 . . . 2 1 . 1 . 3 1 1 . . Specialist 1 | . . . . . . . . . . . . . . 1 . . . . . . . . . Hunter 19 | . . . . . . . 1 . . 2 . . . . . 4 2 . 4 . 2 . 4 Programmer 19 | . . . . . . . . . . 6 . . . . 2 . 9 . 2 . . . . Behemoth 1 | . . . . . . . . . . . . . . . . 1 . . . . . . . Compactor 4 | . . . . . . . . . . . 2 . . . . . . 2 . . . . . Assembled 5 | . . 5 . . . . . . . . . . . . . . . . . . . . . Surgeon 1 | . . . . . . . . . . . . . . 1 . . . . . . . . . Mutant 1 | . . . . . . . . . . . . . . . . . . . . . 1 . . Best Kill Streak 9 | 1 4 6 3 9 . 9 5 3 2 6 1 . . 1 3 4 8 1 5 6 2 . 4 Combat Bots Only 9 | . 3 5 3 9 . 4 5 3 . 2 1 . . 1 3 4 4 1 5 6 2 . 4 Max Kills in Single Turn 4 | 1 2 2 1 3 . 4 3 3 1 2 1 . . 1 1 3 2 1 4 3 1 . 3 Gunslinging . | . . . . . . . . . . . . . . . . . . . . . . . . Exploded 4 | . 2 2 1 3 . 4 2 3 . 2 . . . . . 3 2 . 4 3 . . 3 Melee 1 | . . . . . . . 1 . . 1 . . . . . . . . . . . . . Uniques/NPCs Destroyed . | . . . . . . . . . . . . . . . . . . . . . . . . Combat | -11 -10 -10 -9 -9 -9 -8 -8 -8 -8 -7 -7 -7 -6 -6 -6 -6 -5 -5 -5 -5 -5 -5 -4 -------- Run | Scr Mat Min Mat Min Exi Min Mat Gar Mat Fac Was Fac Fac Gar Fac Gar Fac Was Fac Upp Upp War Pro Damage Taken 21450 | . 357 536 294 469 . 422 2890 272 17 1770 136 102 . 1032 1208 1411 2450 . 1705 2239 417 . 3723 Core 2403 | . 65 110 10 94 . 60 450 57 . 217 . 8 . 159 112 49 204 . 107 142 27 . 532 Absorbed by Shields 669 | . . . . 21 . 36 75 . . . . . . 41 . . . . 40 104 128 . 224 Reduced by Siege Mode 5 | . . . . . . . . . . . . . . . . . . . 5 . . . . Core Remaining (%) 54 | 100 . 30 . . . 59 . . 7 . . 67 . . . 62 . . . . . . . Volleys Fired 1156 | 1 29 42 25 37 . 58 59 26 8 84 110 2 1 68 55 63 152 91 76 70 22 . 77 Largest 2 | 2 2 2 2 2 . 2 2 1 1 2 1 1 1 1 2 2 2 1 2 1 2 . 2 Hottest 173 | 60 60 90 50 56 . 81 83 55 75 80 65 65 65 65 105 114 150 69 134 105 128 . 173 Shots Fired 1341 | 2 54 57 46 48 . 60 80 26 8 96 110 2 1 68 61 78 170 90 87 70 35 . 92 Gun 685 | 2 50 21 42 39 . 49 66 23 3 77 53 . . 7 16 20 53 60 25 19 25 . 35 Cannon 419 | . . 29 . . . . 6 . 5 16 28 2 1 42 25 39 84 24 28 35 10 . 45 Launcher 115 | . 4 7 4 9 . 11 8 3 . 2 13 . . . . 9 5 . 15 16 . . 9 Special 122 | . . . . . . . . . . 1 16 . . 19 20 10 28 6 19 . . . 3 Kinetic 499 | 1 25 17 42 27 . 47 51 . . 45 53 . . 7 16 20 37 . 12 19 25 . 55 Thermal 408 | . . 29 . 12 . 2 15 23 5 16 28 2 1 42 8 10 63 84 15 20 10 . 23 Explosive 75 | . 4 7 4 9 . 11 8 3 . . . . . . . . . . 4 16 . . 9 Electromagnetic 237 | 1 25 4 . . . . 6 . 3 34 13 . . . 17 38 42 . 37 15 . . 2 Robot Hit Streak 30 | 1 12 9 4 12 . 4 10 12 4 20 16 1 . 9 14 16 15 30 13 12 24 . 5 Robot Miss Streak 8 | . 3 2 8 6 . 4 4 2 2 5 4 1 . 3 1 5 4 1 4 3 1 . 5 Penetration Max 1 | . . . . . . . . . . 1 . . . 1 . 1 1 . 1 1 . . 1 Secondary Targets 4 | . . . . 1 . . 2 . . . . . . . . . . . 1 . . . . Max Gunslinging Chain 1 | . . . . 1 . . 1 . . . . . . . . . . . 1 . . . . Shots Hit Robots 972 | 1 37 32 24 33 . 42 74 12 3 82 92 1 . 44 52 42 129 83 61 52 31 . 45 Core Hits 502 | 1 18 22 22 26 . 41 45 7 2 72 12 . . 9 18 21 51 16 40 40 10 . 29 Critical Hits 23 | . 2 . . 1 . . . . . . 1 . . . . 1 3 . 1 . 1 . 13 Critical Kills 7 | . 1 . . . . . . . . . . . . . . 1 . . . . . . 5 Critical Parts Destroyed 15 | . 1 . . 1 . . . . . . . . . . . . 3 . 1 . 1 . 8 Melee Attacks 85 | . . . . . . . 24 . . 26 3 . . . . . 9 . 4 17 1 . 1 Impact 79 | . . . . . . . 20 . . 26 3 . . . . . 9 . 4 17 . . . Slashing 4 | . . . . . . . 4 . . . . . . . . . . . . . . . . Piercing 2 | . . . . . . . . . . . . . . . . . . . . . 1 . 1 Sneak Attacks 3 | . . . . . . . . . . . 3 . . . . . . . . . . . . Combat Hostiles 3 | . . . . . . . . . . . 3 . . . . . . . . . . . . Follow-up Attacks . | . . . . . . . . . . . . . . . . . . . . . . . . Damage Inflicted 32217 | 15 876 959 740 1131 . 1840 2849 354 80 2329 2100 28 . 979 1131 1420 4042 1711 3049 3609 798 . 2177 Guns 11045 | 15 477 191 475 508 . 744 1070 173 56 1665 1026 . . 217 288 189 1131 1118 395 341 485 . 481 Cannons 8881 | . . 385 . . . . 133 . 24 188 731 28 . 762 696 665 2186 593 635 949 313 . 593 Explosions 11082 | . 399 383 265 623 . 1096 1239 181 . 338 48 . . . 99 551 687 . 1984 2086 . . 1103 Melee 1062 | . . . . . . . 396 . . 138 295 . . . . . . . . 233 . . . Ramming 147 | . . . . . . . 11 . . . . . . . 48 15 38 . 35 . . . . Kinetic 7959 | . 198 151 475 334 . 744 810 . . 1097 1026 . . 217 288 189 826 . 141 341 485 . 637 Thermal 9311 | . 43 385 . 174 . 146 340 173 24 396 749 28 . 762 309 417 1936 1711 416 575 313 . 414 Explosive 8181 | . 356 383 265 623 . 950 1159 181 . . . . . . . . . . 1075 2086 . . 1103 Electromagnetic 5557 | 15 279 40 . . . . 133 . 56 698 30 . . . 486 799 1242 . 1382 374 . . 23 Impact 1030 | . . . . . . . 364 . . 138 295 . . . . . . . . 233 . . . Slashing 32 | . . . . . . . 32 . . . . . . . . . . . . . . . . Piercing . | . . . . . . . . . . . . . . . . . . . . . . . . Highest Corruption 29 | . 2 3 . . . . 2 2 2 7 7 1 . . 2 2 4 2 2 . . 29 29 Average Corruption 6 | . 2 2 . . . . 2 2 2 3 4 1 . . 1 2 2 2 1 . . 16 26 Corruption Purged 21 | . . . . . . . . . . . 6 1 . . . . 6 . 2 . . 2 4 Effects 321 | . 8 12 . . . . 8 6 7 31 20 . . . 10 18 16 9 3 . . 24 149 Message Errors 73 | . 1 2 . . . . 4 4 5 5 5 . . . 5 7 9 1 . . . 5 20 Matter Fused 46 | . . . . . . . . . . 9 2 . . . . . 1 . . . . 5 29 Heat Flow Errors 35 | . 2 . . . . . 1 . . 1 2 . . . 4 4 . 2 1 . . 3 15 Energy Discharges 41 | . 4 3 . . . . . . 2 9 1 . . . . 1 3 2 2 . . 5 9 Parts Rejected 2 | . . . . . . . . . . 1 1 . . . . . . . . . . . . Data Loss (minor) 31 | . . 4 . . . . . 2 . 4 1 . . . . 3 3 . . . . 4 10 Data Loss (major) 6 | . . . . . . . . . . 1 . . . . . . . . . . . . 5 Misfires 5 | . . . . . . . . . . . 1 . . . . . . . . . . . 4 Alerts 5 | . . . . . . . . . . . . . . . . . . . . . . 2 3 Misdirections 25 | . . . . . . . . . . . . . . . . . . . . . . . 25 Targeting Errors 43 | . 1 3 . . . . 2 . . 1 6 . . . 1 3 . 3 . . . . 23 Weapon Failures 9 | . . . . . . . 1 . . . 1 . . . . . . 1 . . . . 6 Overload Shots . | . . . . . . . . . . . . . . . . . . . . . . . . Overflow Damage 697 | . 10 . 3 20 . 26 29 6 . 41 . 21 . 43 20 . 94 . 104 172 . . 108 Projectiles 243 | . . . . . . . 13 . . . . 21 . 43 20 . 94 . . 36 . . 16 Explosions 400 | . 10 . 3 20 . 26 14 6 . 14 . . . . . . . . 99 116 . . 92 Melee 54 | . . . . . . . 2 . . 27 . . . . . . . . 5 20 . . . Knockbacks 7 | . . . . . . . . . . 1 . . . . . . . . 1 . . . 5 Impact 2 | . . . . . . . . . . 1 . . . . . . . . 1 . . . . Kinetic 5 | . . . . . . . . . . . . . . . . . . . . . . . 5 Secondary . | . . . . . . . . . . . . . . . . . . . . . . . . Self-Inflicted Damage 929 | . . 39 16 97 . 33 234 64 . 29 98 . . . . . 54 . . 192 . . 73 Shots 30 | . . 1 1 4 . 1 6 2 . 3 4 . . . . . 1 . . 5 . . 2 Rammed 12 | . . . . . . . 2 . . . . . . . 5 1 3 . 1 . . . . Targets Rammed 12 | . . . . . . . 2 . . . . . . . 5 1 3 . 1 . . . . Kicked . | . . . . . . . . . . . . . . . . . . . . . . . . Crushed . | . . . . . . . . . . . . . . . . . . . . . . . . Highest Temperature 329 | 20 274 290 9 72 . 30 198 191 44 257 233 13 . 153 204 329 199 275 199 198 . 182 221 Average Temperature 82 | 15 58 84 2 22 . 16 78 58 22 67 33 13 . 88 66 84 91 120 90 87 . 92 86 Received Heat Transfer 5020 | . 147 231 114 103 . 129 1290 9 9 108 . . . 375 261 174 342 . 318 795 38 . 577 Effects 4 | . . . . . . . . . . . . . . . . 1 . 3 . . . . . Interference 3 | . . . . . . . . . . . . . . . . . . 3 . . . . . Matter Decay 1 | . . . . . . . . . . . . . . . . 1 . . . . . . . Siege Activations 2 | . . . . . . . . . . . . . . . . . . . 2 . . . . Total Turns 24 | . . . . . . . . . . . . . . . . . . . 24 . . . . Longest Duration 13 | . . . . . . . . . . . . . . . . . . . 13 . . . . Robots Corrupted 17 | . . . . . . . . . . . . . . . 1 2 4 . 7 3 . . . Combat Hostiles 16 | . . . . . . . . . . . . . . . 1 2 3 . 7 3 . . . Parts Fried 30 | . 1 . . . . . . . . 3 . . . . 4 4 4 . 11 3 . . . Impact Corruptions 5 | . . . . . . . 1 . . 2 . . . . . . . . 1 1 . . . Robots Melted . | . . . . . . . . . . . . . . . . . . . . . . . . Combat Hostiles . | . . . . . . . . . . . . . . . . . . . . . . . . Parts Melted 20 | . . 1 . . . . 1 . . . . . . 1 . 1 10 . 2 . 2 . 2 Heat Transferred 13294 | . . 814 . 444 . 200 668 322 37 474 1049 37 . 1036 359 433 2335 2997 544 592 333 . 620 Parts Sabotaged . | . . . . . . . . . . . . . . . . . . . . . . . . Parts Stolen . | . . . . . . . . . . . . . . . . . . . . . . . . Parts Stripped . | . . . . . . . . . . . . . . . . . . . . . . . . Power Chain Reactions 22 | . 1 . . . . . 1 . . 4 1 . . . 2 4 5 . 4 . . . . Missiles Intercepted . | . . . . . . . . . . . . . . . . . . . . . . . . Alert | -11 -10 -10 -9 -9 -9 -8 -8 -8 -8 -7 -7 -7 -6 -6 -6 -6 -5 -5 -5 -5 -5 -5 -4 ------- Run | Scr Mat Min Mat Min Exi Min Mat Gar Mat Fac Was Fac Fac Gar Fac Gar Fac Was Fac Upp Upp War Pro Peak Influence 815 | 5 115 136 287 536 . 525 185 303 204 351 111 526 160 682 376 554 369 71 815 . . . . Initial 357 | . 3 16 3 111 . . 120 35 147 2 106 . 159 112 357 52 290 69 49 . . . . Average 203 | 2 24 53 118 350 . 333 103 188 142 167 51 286 159 501 139 306 132 70 321 . . . . Maximum Alert Level 3 | . . . 1 2 . 2 . 1 1 1 . 2 . 2 1 2 1 . 3 . . . . Low Security (%) 56 | 100 100 100 80 . . 10 100 43 90 45 100 30 100 5 76 35 70 100 40 . . . . Level 1 30 | . . . 19 82 . 67 . 56 9 54 . 48 . 11 23 28 29 . 27 . . . . Level 2 12 | . . . . 16 . 22 . . . . . 20 . 82 . 36 . . 19 . . . . Level 3 . | . . . . . . . . . . . . . . . . . . . 11 . . . . Level 4 . | . . . . . . . . . . . . . . . . . . . . . . . . Level 5 . | . . . . . . . . . . . . . . . . . . . . . . . . High Security . | . . . . . . . . . . . . . . . . . . . . . . . . Max Security . | . . . . . . . . . . . . . . . . . . . . . . . . Squads Dispatched 41 | . 2 . 3 . . 1 4 . . 10 . 2 . . 5 . 5 . 9 . . . . Investigation 6 | . . . 1 . . . . . . 2 . 1 . . . . 1 . 1 . . . . Extermination 14 | . . . . . . . . . . 7 . . . . 3 . 3 . 1 . . . . Reinforcement 12 | . 2 . 2 . . 1 2 . . 1 . 1 . . . . 1 . 2 . . . . Assault 2 | . . . . . . . . . . . . . . . . . . . 2 . . . . Garrison 7 | . . . . . . . 2 . . . . . . . 2 . . . 3 . . . . Intercept . | . . . . . . . . . . . . . . . . . . . . . . . . Construction Impeded 3 | . . . . . . 1 1 . . . . . . . . . . . 1 . . . . Haulers Reinforced . | . . . . . . . . . . . . . . . . . . . . . . . . Stealth | -11 -10 -10 -9 -9 -9 -8 -8 -8 -8 -7 -7 -7 -6 -6 -6 -6 -5 -5 -5 -5 -5 -5 -4 --------- Run | Scr Mat Min Mat Min Exi Min Mat Gar Mat Fac Was Fac Fac Gar Fac Gar Fac Was Fac Upp Upp War Pro Distress Signals 14 | . 1 . . . . . 7 1 1 . . . . . 1 . 3 . . . . . . Communications Jammed . | . . . . . . . . . . . . . . . . . . . . . . . . Distress Signals . | . . . . . . . . . . . . . . . . . . . . . . . . Times Spotted 409 | . 15 15 15 23 . 22 38 14 6 26 6 12 . 30 16 27 48 5 33 29 4 . 25 Peak Tracking Total 9 | . 5 5 4 4 . 4 9 6 2 3 2 6 . 6 4 5 5 2 5 7 2 . 6 Tactical Retreats 45 | . . 2 2 3 . . 7 2 1 1 . . . 4 . 4 3 . 1 15 . . . Traps | -11 -10 -10 -9 -9 -9 -8 -8 -8 -8 -7 -7 -7 -6 -6 -6 -6 -5 -5 -5 -5 -5 -5 -4 ------- Run | Scr Mat Min Mat Min Exi Min Mat Gar Mat Fac Was Fac Fac Gar Fac Gar Fac Was Fac Upp Upp War Pro Traps Triggered 22 | . 1 . . . . . . 3 . 2 . . . 8 1 3 3 . 1 . . . . Indirectly 1 | . . . . . . . . . . . . . . . . 1 . . . . . . . Trap Hack Attempts . | . . . . . . . . . . . . . . . . . . . . . . . . Triggered . | . . . . . . . . . . . . . . . . . . . . . . . . Disarmed . | . . . . . . . . . . . . . . . . . . . . . . . . Reprogrammed . | . . . . . . . . . . . . . . . . . . . . . . . . Reused 1 | . . . . . . . . . . . . . . . . . . . . . . . 1 Traps Extracted . | . . . . . . . . . . . . . . . . . . . . . . . . Installed 1 | . . . . . . . . . . . . . . . . . . . . . . . 1 Triggered 1 | . . . . . . . . . . . . . . . . . . . . . . . 1 Power Sources Rigged 39 | . . . . . . 5 5 8 . 9 . . . 5 2 5 . . . . . . . Exploded 33 | . . . . . . 5 5 7 . 4 1 . . 5 1 5 . . . . . . . Machines | -11 -10 -10 -9 -9 -9 -8 -8 -8 -8 -7 -7 -7 -6 -6 -6 -6 -5 -5 -5 -5 -5 -5 -4 ---------- Run | Scr Mat Min Mat Min Exi Min Mat Gar Mat Fac Was Fac Fac Gar Fac Gar Fac Was Fac Upp Upp War Pro Machines Disabled 45 | . 1 . 1 2 . 1 2 1 . 8 . . . 6 1 7 4 . 7 2 2 . . Max in Single Turn 6 | . 1 . 1 1 . 1 2 1 . 6 . . . 1 1 1 2 . 2 1 1 . . Garrison Access 2 | . . . . . . . . . . . . . . . . . 1 . 1 . . . . Garrison Relay 8 | . . . . . . . . 1 . . . . . 4 . 3 . . . . . . . Machines Sabotaged . | . . . . . . . . . . . . . . . . . . . . . . . . Garrisons Compromised . | . . . . . . . . . . . . . . . . . . . . . . . . Overloaded Fab Kills . | . . . . . . . . . . . . . . . . . . . . . . . . Fab Network Shutdowns . | . . . . . . . . . . . . . . . . . . . . . . . . Hacking | -11 -10 -10 -9 -9 -9 -8 -8 -8 -8 -7 -7 -7 -6 -6 -6 -6 -5 -5 -5 -5 -5 -5 -4 --------- Run | Scr Mat Min Mat Min Exi Min Mat Gar Mat Fac Was Fac Fac Gar Fac Gar Fac Was Fac Upp Upp War Pro Machines Accessed 49 | . 4 1 3 . 2 . 7 . 3 10 . 3 1 . 8 . 5 . 1 1 . . . Terminals 22 | . 4 . 1 . . . 5 . 3 2 . 1 . . 3 . 2 . . 1 . . . Fabricators 6 | . . . . . . . . . . 3 . 1 . . 1 . 1 . . . . . . Repair Stations 6 | . . . . . . . . . . 2 . 1 . . 2 . 1 . . . . . . Recycling Units 2 | . . . 1 . . . . . . 1 . . . . . . . . . . . . . Scanalyzers 6 | . . . 1 . . . 1 . . 2 . . . . 1 . . . 1 . . . . Garrison Access 4 | . . . . . . . 1 . . . . . 1 . 1 . 1 . . . . . . Total Hacks 139 | . 13 1 12 . 2 . 17 . 11 30 . 5 1 . 19 . 9 . 14 5 . . . Successful 92 | . 5 1 11 . 2 . 11 . 5 20 . 2 1 . 13 . 5 . 11 5 . . . Failed 47 | . 8 . 1 . . . 6 . 6 10 . 3 . . 6 . 4 . 3 . . . . Catastrophic 8 | . 1 . 1 . . . 1 . 1 2 . 1 . . . . 1 . . . . . . Database Lockouts . | . . . . . . . . . . . . . . . . . . . . . . . . Manual 33 | . 4 . 2 . 1 . 8 . 4 4 . 1 . . 5 . 3 . . . 1 . . Terminals 61 | . 13 . 1 . . . 13 . 11 4 . 1 . . 8 . 5 . . 5 . . . Fabricators 11 | . . . . . . . . . . 4 . 2 . . 3 . 2 . . . . . . Repair Stations 13 | . . . . . . . . . . 5 . 2 . . 5 . 1 . . . . . . Recycling Units 3 | . . . 1 . . . . . . 2 . . . . . . . . . . . . . Scanalyzers 43 | . . . 10 . . . 2 . . 15 . . . . 2 . . . 14 . . . . Garrison Access 5 | . . . . . . . 2 . . . . . 1 . 1 . 1 . . . . . . Terminal Hacks 24 | . 4 1 . . 2 . 5 . 3 . . . . . 2 . 2 . . 5 . . . Record 6 | . . . . . 1 . . . . . . . . . . . . . . 5 . . . Part Schematic 1 | . 1 . . . . . . . . . . . . . . . . . . . . . . Open Door 1 | . . 1 . . . . . . . . . . . . . . . . . . . . . Branch Access Points 2 | . 1 . . . . . 1 . . . . . . . . . . . . . . . . Emergency Access Points 1 | . . . . . . . 1 . . . . . . . . . . . . . . . . Alert Level 1 | . . . . . . . 1 . . . . . . . . . . . . . . . . Unreport Threat 5 | . 1 . . . . . 2 . . . . . . . 1 . 1 . . . . . . Locate Traps 1 | . . . . . . . . . 1 . . . . . . . . . . . . . . Zone Layout 5 | . 1 . . . . . . . 2 . . . . . 1 . 1 . . . . . . EX-Prototype ID Bank 1 | . . . . . 1 . . . . . . . . . . . . . . . . . . Fabricator Hacks 8 | . . . . . . . . . . 2 . 1 . . 3 . 2 . . . . . . Network Status 1 | . . . . . . . . . . . . 1 . . . . . . . . . . . Load Schematic 3 | . . . . . . . . . . 1 . . . . 1 . 1 . . . . . . Build 4 | . . . . . . . . . . 1 . . . . 2 . 1 . . . . . . Repair Station Hacks 9 | . . . . . . . . . . 5 . 1 . . 3 . . . . . . . . Scan Component 6 | . . . . . . . . . . 3 . 1 . . 2 . . . . . . . . Repair 3 | . . . . . . . . . . 2 . . . . 1 . . . . . . . . Recycling Unit Hacks . | . . . . . . . . . . . . . . . . . . . . . . . . Scanalyzer 37 | . . . 10 . . . 2 . . 13 . . . . 1 . . . 11 . . . . Insert Component 19 | . . . 5 . . . 1 . . 7 . . . . 1 . . . 5 . . . . Analyze 18 | . . . 5 . . . 1 . . 6 . . . . . . . . 6 . . . . Garrison Access Hacks 4 | . . . . . . . 1 . . . . . 1 . 1 . 1 . . . . . . Unlock Access 3 | . . . . . . . 1 . . . . . 1 . 1 . . . . . . . . Seal Access 1 | . . . . . . . . . . . . . . . . . 1 . . . . . . Unauthorized Hacks 10 | . 1 . 1 . . . 3 . 2 . . . . . 3 . . . . . . . . Terminals 9 | . 1 . . . . . 3 . 2 . . . . . 3 . . . . . . . . Track 6 | . 1 . . . . . 2 . 1 . . . . . 2 . . . . . . . . Botnet 2 | . . . . . . . 1 . 1 . . . . . . . . . . . . . . Operators 1 | . . . . . . . . . . . . . . . 1 . . . . . . . . Fabricators . | . . . . . . . . . . . . . . . . . . . . . . . . Repair Stations . | . . . . . . . . . . . . . . . . . . . . . . . . Recycling Units 1 | . . . 1 . . . . . . . . . . . . . . . . . . . . Tunnel 1 | . . . 1 . . . . . . . . . . . . . . . . . . . . Scanalyzers . | . . . . . . . . . . . . . . . . . . . . . . . . Garrison Access . | . . . . . . . . . . . . . . . . . . . . . . . . Data Cores Recovered 1 | . . . . . . . . . . . . 1 . . . . . . . . . . . Used 1 | . . . . . . . . . . . . 1 . . . . . . . . . . . Hacking Detections 36 | . 3 . 2 . . . 6 . 3 8 . 3 . . 7 . 2 . 1 1 . . . Full Trace Events 4 | . . . . . . . 1 . . 2 . . . . . . . . . 1 . . . Feedback Events . | . . . . . . . . . . . . . . . . . . . . . . . . Feedback Blocked . | . . . . . . . . . . . . . . . . . . . . . . . . Robot Schematics Acquired . | . . . . . . . . . . . . . . . . . . . . . . . . Robots Built . | . . . . . . . . . . . . . . . . . . . . . . . . Matter . | . . . . . . . . . . . . . . . . . . . . . . . . Time . | . . . . . . . . . . . . . . . . . . . . . . . . Total Robot Build Rating . | . . . . . . . . . . . . . . . . . . . . . . . . Part Schematics Acquired 17 | . 1 . 5 . . . 1 . . 5 . . . . . . . . 5 . . . . Parts Built 4 | . . . . . . . . . . 1 . . . . 2 . 1 . . . . . . Matter 430 | . . . . . . . . . . 102 . . . . 204 . 124 . . . . . . Time 137 | . . . . . . . . . . 25 . . . . 50 . 62 . . . . . . Total Part Build Rating 5 | . . . . . . . . . . 1 . . . . 2 . 2 . . . . . . Parts Repaired 3 | . . . . . . . . . . 2 . . . . 1 . . . . . . . . Time 169 | . . . . . . . . . . 125 . . . . 44 . . . . . . . . Parts Recycled . | . . . . . . . . . . . . . . . . . . . . . . . . Recycled Matter . | . . . . . . . . . . . . . . . . . . . . . . . . Retrieved Matter . | . . . . . . . . . . . . . . . . . . . . . . . . Retrieved Components . | . . . . . . . . . . . . . . . . . . . . . . . . Parts Scanalyzed 18 | . . . 5 . . . 1 . . 7 . . . . . . . . 5 . . . . Part Schematics Acquired 16 | . . . 5 . . . 1 . . 5 . . . . . . . . 5 . . . . Parts Damaged . | . . . . . . . . . . . . . . . . . . . . . . . . Bothacking | -11 -10 -10 -9 -9 -9 -8 -8 -8 -8 -7 -7 -7 -6 -6 -6 -6 -5 -5 -5 -5 -5 -5 -4 ------------ Run | Scr Mat Min Mat Min Exi Min Mat Gar Mat Fac Was Fac Fac Gar Fac Gar Fac Was Fac Upp Upp War Pro Used RIF Installer 3 | . . . . . . . . 1 . . . . . 1 . 1 . . . . . . . Command Fork 1 | . . . . . . . . . . . . . . 1 . . . . . . . . . Program Shield 1 | . . . . . . . . . . . . . . . . 1 . . . . . . . Robots Hacked 63 | . . . . . . . . . . 1 7 . . 13 7 8 13 6 6 . . . 2 Non-combat 16 | . . . . . . . . . . 1 . . . 1 7 . 3 . 3 . . . 1 Combat 47 | . . . . . . . . . . . 7 . . 12 . 8 10 6 3 . . . 1 Robot Hacks Applied 82 | . . . . . . . . . . 1 12 . . 13 12 9 17 6 9 . . . 3 parse_system 7 | . . . . . . . . . . . 2 . . 3 . 1 . . . . . . 1 no_distress 9 | . . . . . . . . . . . . . . . 5 . 3 . . . . . 1 find_chute 1 | . . . . . . . . . . . . . . . . . 1 . . . . . . map_walls 1 | . . . . . . . . . . . . . . . . . . . 1 . . . . find_fabricator 1 | . . . . . . . . . . . . . . . 1 . . . . . . . . drop_inventory 3 | . . . . . . . . . . 1 . . . . 1 . 1 . . . . . . find_recycling 2 | . . . . . . . . . . . . . . . 2 . . . . . . . . ignore_parts 1 | . . . . . . . . . . . . . . . 1 . . . . . . . . find_station 1 | . . . . . . . . . . . . . . . 1 . . . . . . . . purge_threat 3 | . . . . . . . . . . . . . . . . . . . 3 . . . . disarm_traps 1 | . . . . . . . . . . . . . . . . . . . 1 . . . . mark_security 1 | . . . . . . . . . . . . . . . 1 . . . . . . . . ignore_targets 16 | . . . . . . . . . . . 10 . . . . . . 6 . . . . . scatter_targeting 1 | . . . . . . . . . . . . . . 1 . . . . . . . . . broadcast_data 1 | . . . . . . . . . . . . . . . . . . . 1 . . . . spike_heat 2 | . . . . . . . . . . . . . . 1 . . 1 . . . . . . overload_power 1 | . . . . . . . . . . . . . . . . . 1 . . . . . . go_dormant 2 | . . . . . . . . . . . . . . 1 . . 1 . . . . . . overwrite_iff 14 | . . . . . . . . . . . . . . 4 . 4 4 . 2 . . . . streamctrl_high 3 | . . . . . . . . . . . . . . . . 1 1 . . . . . 1 formatsys_high 11 | . . . . . . . . . . . . . . 3 . 3 4 . 1 . . . . Relay Couplers Released 35 | . . . . . . . . 3 . . . . . 14 . 12 3 . 3 . . . . Machine Destruction 32 | . . . . . . . . 3 . . . . . 14 . 12 . . 3 . . . . Programmers 3 | . . . . . . . . . . . . . . . . . 3 . . . . . . Attached 20 | . . . . . . . . . . 1 1 . . 5 1 4 4 . 3 . . . 1 Robots Rewired . | . . . . . . . . . . . . . . . . . . . . . . . . Allies Hacked . | . . . . . . . . . . . . . . . . . . . . . . . . Hacks Repelled . | . . . . . . . . . . . . . . . . . . . . . . . . Allies | -11 -10 -10 -9 -9 -9 -8 -8 -8 -8 -7 -7 -7 -6 -6 -6 -6 -5 -5 -5 -5 -5 -5 -4 -------- Run | Scr Mat Min Mat Min Exi Min Mat Gar Mat Fac Was Fac Fac Gar Fac Gar Fac Was Fac Upp Upp War Pro Total Allies 57 | . . . . 6 . . . . . . 20 . . 7 . 8 10 1 4 . . . 1 Largest Group 19 | . . . . 6 6 3 . . . . 19 19 11 11 1 2 3 1 2 1 . . 1 Highest-Rated Group 477 | . . . . 112 112 40 . . . . 477 477 310 310 33 81 107 31 60 60 . . 56 Highest-Rated Ally 81 | . . . . 31 31 16 . . . . 35 35 35 41 33 81 49 31 60 60 . . 56 Total Orders 14 | . . . 1 . . 2 . . . . . . . 1 . . . . . 5 3 . 2 STAY 1 | . . . . . . . . . . . . . . 1 . . . . . . . . . EXPLORE 12 | . . . . . . 2 . . . . . . . . . . . . . 5 3 . 2 RETURN 1 | . . . 1 . . . . . . . . . . . . . . . . . . . . Ally Attacks 407 | . . . . . . 33 . . . . 92 110 . 61 . 27 53 17 11 . . . 3 Total Damage 7397 | . . . . . . 341 . . . . 2054 1523 . 1181 . 515 1115 356 180 . . . 132 Kills 49 | . . . . . . 6 . . . . 4 14 . 15 . 1 5 1 . . . . 3 Allies Corrupted 2 | . . . . . . . . . . . . . . . . . 1 1 . . . . . Allies Melted . | . . . . . . . . . . . . . . . . . . . . . . . . Intel | -11 -10 -10 -9 -9 -9 -8 -8 -8 -8 -7 -7 -7 -6 -6 -6 -6 -5 -5 -5 -5 -5 -5 -4 ------- Run | Scr Mat Min Mat Min Exi Min Mat Gar Mat Fac Was Fac Fac Gar Fac Gar Fac Was Fac Upp Upp War Pro Robot Analysis Total . | . . . . . . . . . . . . . . . . . . . . . . . . Derelict Logs Recovered 6 | . . 1 . 2 . . . . . . . . . . . . . . . 2 . . 1 Drone Launches 21 | . . . 1 . . 3 . . . . . . . . . . . . . 10 2 . 5 Drone Recoveries 17 | . . . 1 . . 3 . . . . . . . . . . . . . 7 2 . 4 Exploration | -11 -10 -10 -9 -9 -9 -8 -8 -8 -8 -7 -7 -7 -6 -6 -6 -6 -5 -5 -5 -5 -5 -5 -4 ------------- Run | Scr Mat Min Mat Min Exi Min Mat Gar Mat Fac Was Fac Fac Gar Fac Gar Fac Was Fac Upp Upp War Pro Turns Passed 26449 | 83 698 1016 348 912 1172 990 1340 1021 481 3271 833 478 141 1611 1739 1527 2067 360 1041 2043 618 650 2009 Spaces Moved 12261 | 47 345 524 273 857 850 601 661 478 273 1276 318 237 62 711 692 627 755 81 432 989 296 68 808 Core 16 | 9 . . . . . . . . . . . . . . . . . . . . . . 7 Treads 8063 | 33 345 408 . . . 10 121 . 13 1150 318 237 62 711 692 627 696 66 432 989 296 68 789 Legs 12 | . . . . . . . . . . . . . . . . . . . . . . . 12 Wheels 2317 | 5 . 116 . . 127 591 540 478 260 126 . . . . . . 59 15 . . . . . Hover 1853 | . . . 273 857 723 . . . . . . . . . . . . . . . . . . Flight . | . . . . . . . . . . . . . . . . . . . . . . . . Fastest Speed 50 | 50 160 120 76 76 76 110 110 190 135 135 180 180 200 200 200 200 180 180 180 180 180 180 180 Average Speed 174 | 133 164 161 76 88 134 133 146 190 147 219 185 198 200 200 200 200 208 196 186 180 180 180 217 Slowest Speed 3050 | 160 180 180 76 146 146 260 240 190 200 230 225 200 200 200 260 200 280 270 200 180 180 180 3050 Overloaded Moves . | . . . . . . . . . . . . . . . . . . . . . . . . Propulsion Burnouts . | . . . . . . . . . . . . . . . . . . . . . . . . Robots Hopped . | . . . . . . . . . . . . . . . . . . . . . . . . Cave-ins Triggered . | . . . . . . . . . . . . . . . . . . . . . . . . Exploration Rate (%) 51 | 5 71 88 24 98 72 100 41 52 22 25 88 7 3 79 22 77 18 66 11 95 91 13 68 Regions Visited 23 Branch Regions 8 Pre-discovered Areas 4 | . . . 1 1 1 . . . . . . . . . . . . . . 1 . . . Known Exits Taken 7 | . 1 . . 1 . . 1 . . . . . 1 . 1 . . . . 1 1 . . Unknown Exits Taken 9 | 1 . 1 1 . 1 1 . . 1 . . 1 . . . . . . 1 . . 1 . Scrap Searched 9 | . . . . 1 . 1 . . . . . . . . . . . . . 3 1 . 3 Spaces Dug 139 | . . . 26 49 . 11 12 . 4 15 . . 1 . . . 7 . 3 7 . . 4 Terrain Destroyed 772 | . 10 54 38 95 . 61 77 14 4 33 12 . 1 . 5 20 17 1 100 164 5 . 61 Melee 39 | . . . . . . . 6 . . 15 . . . . . . 7 . 3 7 . . 1 Projectile 45 | . . . . . . . . . 4 . 3 . 1 . 3 2 4 1 1 3 5 . 18 AOE 688 | . 10 54 38 95 . 61 71 14 . 18 9 . . . 2 18 6 . 96 154 . . 42 Terrain Rammed . | . . . . . . . . . . . . . . . . . . . . . . . . Walls Destroyed . | . . . . . . . . . . . . . . . . . . . . . . . . Machines Disabled . | . . . . . . . . . . . . . . . . . . . . . . . . Actions | -11 -10 -10 -9 -9 -9 -8 -8 -8 -8 -7 -7 -7 -6 -6 -6 -6 -5 -5 -5 -5 -5 -5 -4 --------- Run | Scr Mat Min Mat Min Exi Min Mat Gar Mat Fac Was Fac Fac Gar Fac Gar Fac Was Fac Upp Upp War Pro Total 15963 | 64 428 641 374 964 883 732 922 571 345 1616 492 243 78 851 1004 825 1073 198 589 1159 351 595 965 Wait 1377 | . 16 47 34 47 16 6 70 6 39 91 12 . 10 3 172 76 97 . 31 50 3 527 24 Move 12243 | 46 344 523 272 856 849 600 661 477 272 1276 317 236 62 710 692 626 755 80 431 988 295 67 808 Hop . | . . . . . . . . . . . . . . . . . . . . . . . . Pick Up 333 | 7 15 13 13 6 10 31 38 13 8 50 14 1 1 18 23 15 14 7 5 10 8 . 13 Fast Attach 52 | 7 2 . 3 1 1 2 5 1 2 3 4 . 1 2 5 1 3 2 . 2 1 . 4 Attach 147 | . . 3 5 7 2 3 16 . . 9 4 . 2 7 7 11 13 1 13 12 5 . 27 Detach 43 | 1 . 1 3 3 . . 2 . 1 2 2 . 1 2 1 3 1 . 7 4 4 . 5 Swap 175 | . 8 3 6 4 . 10 17 2 6 27 4 3 . 4 15 10 23 5 16 4 4 1 3 Drop 254 | 2 14 9 13 3 5 17 23 14 9 39 22 1 . 17 28 8 2 12 4 2 8 . 2 Fire 1156 | 1 29 42 25 37 . 58 59 26 8 84 110 2 1 68 55 63 152 91 76 70 22 . 77 Melee 85 | . . . . . . . 24 . . 26 3 . . . . . 9 . 4 17 1 . 1 Ram 3 | . . . . . . . 2 . . . . . . . . . 1 . . . . . . Kick . | . . . . . . . . . . . . . . . . . . . . . . . . Crush 8 | . . . . . . . . . . . . . . . 4 1 2 . 1 . . . . Escape Stasis 42 | . . . . . . . . 24 . . . . . 14 . 4 . . . . . . . Rewire 5 | . . . . . . . . . . . . . . 1 . 2 1 . 1 . . . . Trap 40 | . . . . . . 5 5 8 . 9 . . . 5 2 5 . . . . . . 1 Miscellaneous . | . . . . . . . . . . . . . . . . . . . . . . . . Route ------- -11/Scrapyard -10/Materials (discovered 4 exits: *Mat x2 / *Min x2) -10/Mines (discovered 2 exits: *Mat x2) -9/Materials -9/Mines (discovered 4 exits: *Mat x2 / *Exi / [*Zio]) -9/Exiles (discovered 2 exits: [*Min x2]) -8/Mines (discovered 2 exits: *Mat x2) -8/Materials -8/Garrison (discovered 2 exits: *Mat x2) -8/Materials -7/Factory -7/Waste -7/Factory -6/Factory -6/Garrison (discovered 3 exits: *Fac x3) -6/Factory (discovered 3 exits: *Fac x2 / Gar) -6/Garrison (discovered 3 exits: *Fac x3) -5/Factory -5/Waste -5/Factory -5/Upper Caves -5/Upper Caves (discovered 2 exits: *Fac / *War) -5/Warlord -4/Proximity Caves (discovered 1 exit: *Fac) History --------- Turn | Location | Event 21 | -11/Scrapyard | Discovered new exit (range 16) 84 | -11/Scrapyard | Entered Materials 264 | -10/Materials | Discovered new exit (range 3) 313 | -10/Materials | Build established: Mutant 429 | -10/Materials | Discovered new exit (range 16) 716 | -10/Materials | Identified exit to Mines 782 | -10/Materials | Entered Mines 1302 | -10/Mines | Discovered new exit (range 7) 1313 | -10/Mines | Core integrity fell below 50% 1329 | -10/Mines | Discovered new exit (range 15) 1357 | -10/Mines | Found the Drone Emporium 1378 | -10/Mines | Found Prototype Device 1589 | -10/Mines | Assembled infested the area 1594 | -10/Mines | Assisted by a Guerilla fighting off Assembled 1709 | -10/Mines | Learned Materials stockpile data 1798 | -10/Mines | Entered Materials 1798 | -9/Materials | Evolved 2 slots: Utility x2 1798 | -9/Materials | Identified Sensor Drone Bay 2098 | -9/Materials | Discovered new exit (range 15) 2133 | -9/Materials | Build established: Scavenger-Mutant 2146 | -9/Materials | Entered Mines 2156 | -9/Mines | Discovered new exit (range 13) 2179 | -9/Mines | Destroyed 9 combat bots 2179 | -9/Mines | A weapon hastily lodged in a ceiling crevice suddenly fell to the ground 2201 | -9/Mines | Found a damaged Exp. Sensor Array with a note attached 2204 | -9/Mines | Found Prototype Device 2235 | -9/Mines | Learned location of Storage (-9) 2374 | -9/Mines | Identified exit to Exiles 2380 | -9/Mines | Discovered new exit (range 7) 2437 | -9/Mines | Deemed a non-threat by the Exiles lab entrance 2440 | -9/Mines | Build established: Mutant 2735 | -9/Mines | Assisted by bots powering up and referring to "LRC-V3" 2754 | -9/Mines | A Derelict revealed a hidden shortcut to a safe place 2973 | -9/Mines | Received a Mining Laser from a helpful Derelict 3058 | -9/Mines | Entered Exiles 3058 | -9/Exiles | Accompanied by 6 allies 3077 | -9/Exiles | Met 8R-AWN 3088 | -9/Exiles | Led the pair of lost Derelicts to a safe place 3089 | -9/Exiles | Met EX-HEX 3151 | -9/Exiles | Met EX-DEC 3180 | -9/Exiles | Learned location of Zion (-7) 3212 | -9/Exiles | Met EX-BIN 3231 | -9/Exiles | Aligned with FarCom system 3233 | -9/Exiles | Given EX-Vault access code 3278 | -9/Exiles | Opened EX-Vault 3312 | -9/Exiles | Warned to stay clear of 0b10 Research branches 3405 | -9/Exiles | Build established: Hauler-Mutant 3409 | -9/Exiles | Discovered new exit (range 15) 3736 | -9/Exiles | Found PSU Rigger 4082 | -9/Exiles | Discovered new exit (range 15) 4230 | -9/Exiles | Left Exiles lab with PSU Rigger 4230 | -9/Exiles | Entered Mines 4230 | -8/Mines | Accompanied by 3 allies 4318 | -8/Mines | Discovered new exit (range 10) 4787 | -8/Mines | Discovered new exit (range 40) 5220 | -8/Mines | Entered Materials 5220 | -8/Materials | Evolved 2 slots: Utility x2 5896 | -8/Materials | Garrison activated, responded to threat 6029 | -8/Materials | Core integrity fell below 50% 6078 | -8/Materials | Lost 12 parts (1p3n3u5w) 6337 | -8/Materials | Garrison activated, responded to threat 6454 | -8/Materials | Core integrity fell below 20% 6560 | -8/Materials | Identified exit to Garrison 6560 | -8/Materials | Entered Garrison 6737 | -8/Garrison | Triggered checkpoint 6780 | -8/Garrison | Triggered checkpoint 6943 | -8/Garrison | Triggered checkpoint 7007 | -8/Garrison | Discovered new exit (range 14) 7206 | -8/Garrison | Discovered new exit (range 13) 7240 | -8/Garrison | Installed Relay Interface Framework 7510 | -8/Garrison | Garrison Relay disabled 7581 | -8/Garrison | Entered Materials 7977 | -8/Materials | Discovered new exit (range 14) 8062 | -8/Materials | Entered Factory 8062 | -7/Factory | Evolved 2 slots: Utility x2 8127 | -7/Factory | Repaired Cmb. Airjet 8444 | -7/Factory | Identified Exp. Sensor Array 9002 | -7/Factory | Repaired Broken Exp. Sensor Array 10900 | -7/Factory | Fabricated Hcp. Storage Unit (x1) 11333 | -7/Factory | Sucked down chute 11333 | -7/Factory | Entered Waste 11334 | -7/Waste | Met a frightened Derelict 11347 | -7/Waste | Spotted C-40 Crusher 11356 | -7/Waste | Spotted C-40 Crusher 11372 | -7/Waste | Allies destroyed C-40 Crusher 11396 | -7/Waste | Spotted C-40 Crusher 11422 | -7/Waste | Spotted C-40 Crusher 11431 | -7/Waste | Destroyed C-40 Crusher 11443 | -7/Waste | Found Damper Plating 11468 | -7/Waste | Spotted C-40 Crusher 11470 | -7/Waste | Allies destroyed C-40 Crusher 11522 | -7/Waste | Spotted C-40 Crusher 11546 | -7/Waste | Found Damper Plating 11691 | -7/Waste | Destroyed C-40 Crusher 11699 | -7/Waste | Found Damper Plating 11867 | -7/Waste | Warlord forces began an assault 11870 | -7/Waste | Allies destroyed C-40 Crusher 12068 | -7/Waste | Discovered new exit (range 15) 12166 | -7/Waste | Entered Factory 12166 | -7/Factory | Accompanied by 19 allies 12622 | -7/Factory | Discovered new exit (range 5) 12644 | -7/Factory | Entered another Factory area 12644 | -6/Factory | Accompanied by 11 allies 12644 | -6/Factory | Evolved 2 slots: Utility x2 12775 | -6/Factory | Identified exit to Garrison 12785 | -6/Factory | Entered Garrison 12785 | -6/Garrison | Accompanied by 11 allies 12876 | -6/Garrison | Triggered checkpoint 12926 | -6/Garrison | Garrison Relay disabled 13034 | -6/Garrison | Triggered checkpoint 13040 | -6/Garrison | Triggered checkpoint 13302 | -6/Garrison | Triggered checkpoint 13346 | -6/Garrison | Discovered new exit (range 13) 13465 | -6/Garrison | Garrison Relay disabled 13630 | -6/Garrison | Triggered checkpoint 13707 | -6/Garrison | Garrison Relay disabled 13761 | -6/Garrison | Discovered new exit (range 14) 13854 | -6/Garrison | Triggered checkpoint 13925 | -6/Garrison | Discovered new exit (range 8) 13953 | -6/Garrison | Expanded RIF knowledge: Command Fork 14254 | -6/Garrison | Build established: Bothacker-Mutant 14271 | -6/Garrison | Triggered checkpoint 14331 | -6/Garrison | Garrison Relay disabled 14396 | -6/Garrison | Entered Factory 14396 | -6/Factory | Accompanied by 1 ally 14460 | -6/Factory | Repaired Remote Datajack 14905 | -6/Factory | Discovered new exit (range 11) 15061 | -6/Factory | Fabricated Hcp. Storage Unit (x1) 15089 | -6/Factory | Fabricated Hcp. Storage Unit (x1) 15247 | -6/Factory | Build established: Hauler-Mutant 15393 | -6/Factory | Discovered new exit (range 10) 15640 | -6/Factory | Identified exit to Factory 16020 | -6/Factory | Garrison activated, responded to threat 16123 | -6/Factory | Identified exit to Garrison 16135 | -6/Factory | Entered Garrison 16145 | -6/Garrison | Expanded RIF knowledge: Program Shield 16164 | -6/Garrison | Lost 3 parts (1p1u1w) 16222 | -6/Garrison | Triggered checkpoint 16276 | -6/Garrison | Garrison Relay disabled 16430 | -6/Garrison | Lost 3 parts (1n2u) 16592 | -6/Garrison | Build established: Bothacker-Mutant 16649 | -6/Garrison | Spotted B-75 Beast 16656 | -6/Garrison | Triggered checkpoint 16660 | -6/Garrison | Triggered checkpoint 16662 | -6/Garrison | Triggered checkpoint 16922 | -6/Garrison | Destroyed B-75 Beast 17038 | -6/Garrison | Discovered exit to Factory (range 8) 17063 | -6/Garrison | Triggered checkpoint 17164 | -6/Garrison | Garrison Relay disabled 17344 | -6/Garrison | Discovered exit to Factory (range 14) 17504 | -6/Garrison | Discovered exit to Factory (range 13) 17556 | -6/Garrison | Triggered checkpoint 17580 | -6/Garrison | Garrison Relay disabled 17662 | -6/Garrison | Entered Factory 17662 | -5/Factory | Accompanied by 2 allies 17662 | -5/Factory | Evolved 2 slots: Propulsion x1, Utility x1 18470 | -5/Factory | Lost 4 parts (1p1n2u) 18866 | -5/Factory | Fabricated Armor Integrity Analyzer? 19209 | -5/Factory | Discovered new exit (range 12) 19729 | -5/Factory | Sucked down chute 19729 | -5/Factory | Entered Waste 19730 | -5/Waste | Met a frightened Derelict 19744 | -5/Waste | EMP discharged 19751 | -5/Waste | Spotted C-40 Crusher 19778 | -5/Waste | Allies destroyed C-40 Crusher 19804 | -5/Waste | Found Damper Plating 19812 | -5/Waste | Spotted C-40 Crusher 19821 | -5/Waste | Spotted C-40 Crusher 19821 | -5/Waste | Spotted C-40 Crusher 19821 | -5/Waste | Spotted C-40 Crusher 19844 | -5/Waste | EMP discharged 19845 | -5/Waste | Spotted C-40 Crusher 19933 | -5/Waste | Destroyed C-40 Crusher 19938 | -5/Waste | Found Damper Plating 19944 | -5/Waste | EMP discharged 19981 | -5/Waste | Destroyed C-40 Crusher 20044 | -5/Waste | EMP discharged 20073 | -5/Waste | Discovered new exit (range 10) 20087 | -5/Waste | Build established: Hauler-Mutant 20089 | -5/Waste | Entered Factory 20689 | -5/Factory | First assault squad dispatched 20697 | -5/Factory | Discovered new exit (range 6) 21130 | -5/Factory | Entered Upper Caves 21130 | -5/Upper Caves | Accompanied by 1 ally 21250 | -5/Upper Caves | Learned Factory emergency access door positions 21475 | -5/Upper Caves | Lost 5 parts (1p1n2u1w) 22557 | -5/Upper Caves | Attracted the attention of an 0b10 base 22588 | -5/Upper Caves | Learned Extension emergency access door positions 22588 | -5/Upper Caves | Learned Armory terminal intel 22828 | -5/Upper Caves | Spotted B-75 Beast 23033 | -5/Upper Caves | Discovered new exit (range 9) 23143 | -5/Upper Caves | Identified exit to Upper Caves 23173 | -5/Upper Caves | Entered another Upper Caves area 23173 | -5/Upper Caves | Accompanied by 1 ally 23203 | -5/Upper Caves | Attacked by a delusional Derelict stockpiling parts 23335 | -5/Upper Caves | Discovered new exit (range 26) 23336 | -5/Upper Caves | Identified exit to Factory 23403 | -5/Upper Caves | Attracted the attention of an 0b10 checkpoint 23503 | -5/Upper Caves | Lost 3 parts (1p1u1w) 23530 | -5/Upper Caves | Discovered new exit (range 83) 23531 | -5/Upper Caves | Identified exit to Warlord 23600 | -5/Upper Caves | Acquired the password to a Derelict Tinkerer's latest research 23614 | -5/Upper Caves | Found Prototype Special Weapon 23614 | -5/Upper Caves | Identified Molecular Deconstructor 23791 | -5/Upper Caves | Entered Warlord 23890 | -5/Warlord | Discovered new exit (range 12) 23950 | -5/Warlord | System corruption reached 10% 24441 | -5/Warlord | Entered Proximity Caves 25317 | -4/Proximity Caves | Core integrity fell below 50% 25430 | -4/Proximity Caves | Learned 8 Research zone layouts 25603 | -4/Proximity Caves | Lost 4 parts (2n2u) 25871 | -4/Proximity Caves | Core integrity fell below 20% 25897 | -4/Proximity Caves | Lost 6 parts (1n2u3w) 26007 | -4/Proximity Caves | Lost 8 parts (1p1n2u4w) 26447 | -4/Proximity Caves | Discovered exit to Factory (range 8) 26450 | -4/Proximity Caves | Destroyed by G-67 Veteran with Electrolaser Last Messages --------------- 26422_ Slug penetrates B-60 Warrior. 26422_ B-60 Warrior destroyed. 26424_ Acquired 19 matter. 26425_ System corrupted: IFF burst signal emitted. 26425_ Lgt. Antimatter Reactor destroyed. 26426_ Rnf. Fission Core self-destruct mechanism malfunctions. 26427_ Coil Gun destroyed. 26428_ Acquired 5 matter. 26429_ Acquired 10 matter. 26429_ Imp. Treads fries itself beyond repair. 26432_ Acquired Imp. Medium Armor Plating. 26434_ Acquired 10 matter. 26435_ G-67 Veteran destroyed. 26436_ Phase Shifter destroyed. 26438_ G-67 Veteran destroyed. 26445_ Flexi-carbon Leg fries itself beyond repair. 26447_ EXIT=FOUND: FACTORY 26447_ Coolant Injector destroyed. 26448_ Flexi-carbon Leg fries itself beyond repair. 26448_ Electrolaser fries itself beyond repair. Map ----- +----------------------------------------------------+ | ?????????????????????????????????????????????????? | | ?????????????????????????????????????????????????? | | ?????????????????????????????????????????????????? | | ?????????????????????????????????????????????????? | | ?????????????????????????????????????????????????? | | ?????????????????????????????????????????????????? | | ?????????????????????????????????????????????????? | | ?????????????????????????????????????????????????? | | ?????????????????????????????????????????????????? | | #????????????????????????????????????????????????? | | #????????????????????????????????????????????????? | | ###??????????????????????????????????????????????? | | #??????????????????????????????????????????????? | | ##??????????????????????????????????????????????? | | ##???????????????????????????????????????????????? | | #????????????????????????????????????????????????? | | ?????????????????????????????????????????????????? | | ?????????????????????????????????????????????????? | | ?????????????????????????????????????????????????? | | ?????????????????????????????????????????????????? | | #???#########??????????????####??????????????????? | | ##### ##########????# #??????????????????? | | ##### #??????????????????? | | ### #???????????????????? | | ##?######### % !! #???????????????????? | | ###????????# *%% @ #???????????????????? | | " ##??????# #### %g #???????????????????? | | "%" #?????# #??## ! #??????????????????? | | ##????# ##???## ???????????????? | | ####????# ###?????? #?????????????? | | ##???????# #????????? #?????????????? | | #####???????# #?????????? #????????????? | | #?????????? ???????????< ???????????? | | #????????? ???????????? ???????????? | | ????????# #????????????? #### #???????????? | | ????????# #?????????????? ##???? #????????????? | | #???????? ???????????????###??????#????????????? | | ?????????????????????????????????????????????????? | | ?????????????????????????????????????????????????? | | ?????????????????????????????????????????????????? | | ?????????????????????????????????????????????????? | | ?????????????????????????????????????????????????? | | ?????????????????????????????????????????????????? | | ?????????????????????????????????????????????????? | | ?????????????????????????????????????????????????? | | ?????????????????????????????????????????????????? | | ?????????????????????????????????????????????????? | | ?????????????????????????????????????????????????? | | ?????????????????????????????????????????????????? | | ?????????????????????????????????????????????????? | +----------------------------------------------------+ Best States ------------- Heat Dissipation 86 Coolant Potential 65 Energy Generation 21 Energy Capacity 625 Matter Stores 550 Matter Capacity 550 Sight Range 16 Terrain Scan Range 20 Terrain Scan Density 10 EM Shielding 2 Armor Coverage 2400 Resistance: TH 30 Resistance: EM 90 Core Shielding 20 Utility Shielding 66 Weapon Cycling 15 Phase Shifting 5 Evasion (%) 49 Targeting Accuracy 6 Melee Accuracy 5 Armor Integrity Analysis 33 Recoil Reduction 3 Salvage Targeting 1 Offensive Hacking 20 Defensive Hacking 10 Relay Coupler Types 76 Relay Coupler Value 4 Item Schematics ----------------- Hcp. Storage Unit | -10/Materials | Hacked Adv. Terrain Scanner | -9/Materials | Scanalyzed Beam Rifle | -9/Materials | Scanalyzed Signal Interpreter | -9/Materials | Scanalyzed Imp. Flight Unit | -9/Materials | Scanalyzed Armor Integrity Analyzer | -9/Materials | Scanalyzed Cmb. Airjet | -8/Materials | Scanalyzed Melee Analysis Suite | -7/Factory | Scanalyzed Adv. Signal Interpreter | -7/Factory | Scanalyzed Arm. Treads | -7/Factory | Scanalyzed Proton Missile Launcher | -7/Factory | Scanalyzed Hrd. Heavy Armor Plating | -7/Factory | Scanalyzed Antimatter Reactor | -5/Factory | Scanalyzed Hvy. Treads | -5/Factory | Scanalyzed Weapon Cycler | -5/Factory | Scanalyzed Smartbomb Launcher | -5/Factory | Scanalyzed Proton Cannon | -5/Factory | Scanalyzed Robot Schematics ------------------ None Fabricated ------------ Hcp. Storage Unit | x1 | -7/Factory Hcp. Storage Unit | x1 | -6/Factory Hcp. Storage Unit | x1 | -6/Factory Armor Integrity Analyzer | x1 | -5/Factory Alien Tech Used ----------------- None Achievements -------------- None Challenges ------------ None Game ------ Seed ImpulseAntigravSteel Manual? 0 Play Time 04:54:20 Cumulative 138.9 hours Start 2020.09.24 @ 16:42:20 End 2020.09.29 @ 13:12:42 Sessions 12 Manual Loads 0 Difficulty Rogue Special Mode None Game No. 71 Rogue 71 Adventurer 0 Explorer 0 Win Type - Total 1 Types 1/0/0/0/0/0/0/0/0 Lore% 42 Gallery% 72 Achievement% 53 Wizard Run 0 Options --------- ASCII 0 Keyboard 0 Movement Numpad Keybinds 0 Fullscreen 1 Font 18/SmallcapsGlow Map View 76x50 Tactical HUD 1 Map Filters NONE Filters NONE Steam 1 RUN: f4a406e8-7994-4ae8-b2fe-7334da64351b